bitfinex-derivatives/quotes_BTCF0:USTF0_20220102
["timestamp","ask_amount","ask_price","bid_price","bid_amount"]
[1641090850791,1.17413514,47308.0,47304.0,1.245981]
[1641090851890,1.17413514,47308.0,47304.0,1.056981]
[1641090852189,1.17413514,47308.0,47304.0,1.137891]
[1641090852390,1.17413514,47307.0,47304.0,1.73856109]
[1641090852588,1.17413514,47307.0,47304.0,1.92856109]
[1641090853090,1.17413514,47307.0,47305.0,0.69077552]
[1641090854690,1.17413514,47307.0,47305.0,0.88077552]
[1641090855091,1.17413514,47307.0,47305.0,0.79067009]
[1641090856091,1.17413514,47307.0,47306.0,0.09010543]
[1641090856291,1.17413514,47308.0,47306.0,0.69077552]
[1641090856791,1.17413514,47308.0,47306.0,0.60067009]
[1641090857691,1.17413514,47308.0,47305.0,0.79067009]
[1641090857993,1.17413514,47308.0,47305.0,0.60067009]
[1641090858192,0.82217674,47306.0,47305.0,0.60067009]
[1641090858593,0.82217674,47306.0,47305.0,0.79067009]
[1641090858794,1.17413514,47308.0,47305.0,0.79067009]
[1641090859797,1.17413514,47307.0,47305.0,0.79067009]
[1641090859997,1.17413514,47307.0,47305.0,0.60067009]
[1641090860699,0.82212821,47306.0,47305.0,0.79267009]
[1641090861402,0.82212821,47306.0,47305.0,0.192]
[1641090861601,0.82212821,47306.0,47305.0,1.12185811]
[1641090862101,0.82212821,47306.0,47305.0,0.92985811]
[1641090862602,0.82212821,47306.0,47305.0,1.12185811]
[1641090862800,0.82212821,47306.0,47305.0,1.03175554]
[1641090863603,0.82212821,47306.0,47305.0,1.12185811]
[1641090864006,0.82212821,47306.0,47305.0,0.92985811]
[1641090864203,1.17413514,47308.0,47305.0,0.83975554]
[1641090864404,1.17413514,47306.0,47304.0,0.60046709]
[1641090864604,1.17413514,47306.0,47305.0,0.192]
[1641090865109,1.17413514,47307.0,47305.0,0.192]
[1641090865906,1.17413514,47307.0,47304.0,0.60046709]
[1641090866607,1.17413514,47307.0,47304.0,0.79246709]
[1641090867208,1.17413514,47307.0,47305.0,0.60046709]
[1641090867807,1.17413514,47307.0,47305.0,0.69057331]
[1641090868509,1.17413514,47307.0,47305.0,0.88257331]
[1641090869313,1.29122261,47311.0,47305.0,0.28210622]
[1641090869509,1.29122261,47309.0,47306.0,0.92986176]
[1641090869910,1.29122261,47309.0,47307.0,0.14033567]
[1641090870312,1.29122261,47309.0,47307.0,0.74103836]
[1641090870509,1.29122261,47309.0,47307.0,0.93103836]
[1641090871910,1.29122261,47309.0,47307.0,0.74103836]
[1641090872111,1.29122261,47308.0,47307.0,0.74103836]
[1641090872510,1.29122261,47308.0,47307.0,0.93203836]
[1641090872711,1.29122261,47308.0,47307.0,0.33133567]
[1641090872913,1.29122261,47309.0,47307.0,0.42143865]
[1641090873514,1.29122261,47309.0,47308.0,0.09010298]
[1641090873714,1.29122261,47309.0,47308.0,0.69079471]
[1641090874119,1.40843756,47313.0,47308.0,0.69079471]
[1641090874317,1.40843756,47312.0,47307.0,0.7410274]
[1641090874617,1.40843756,47312.0,47308.0,0.19]
[1641090875117,1.29240173,47309.0,47308.0,0.19]
[1641090875918,1.29240173,47309.0,47307.0,0.7410274]
[1641090876120,1.40843756,47312.0,47307.0,0.7410274]
[1641090876319,1.40843756,47312.0,47307.0,0.8144674]
[1641090876522,1.40843756,47312.0,47307.0,1.0024674]
[1641090876918,1.40843756,47313.0,47307.0,1.0024674]
[1641090877119,1.292357,47309.0,47307.0,1.0024674]
[1641090877822,1.292357,47309.0,47307.0,0.8144674]
[1641090878022,1.292357,47309.0,47308.0,0.69079467]
[1641090878523,1.292357,47309.0,47308.0,0.88179467]
[1641090879922,1.292357,47309.0,47308.0,0.69079467]
[1641090880624,1.292357,47309.0,47308.0,0.88079467]
[1641090881428,1.292357,47311.0,47308.0,0.79069173]
[1641090881628,1.292357,47311.0,47308.0,0.19]
[1641090882028,1.292357,47311.0,47307.0,0.14033567]
[1641090882728,1.292357,47311.0,47307.0,0.32933567]
[1641090882928,1.1745945,47308.0,47307.0,0.32933567]
[1641090883940,1.1745945,47308.0,47307.0,0.14033567]
[1641090884754,1.1745945,47308.0,47307.0,0.33233567]
[1641090885950,1.1745945,47308.0,47307.0,0.14033567]
[1641090886751,1.1745945,47308.0,47307.0,0.33233567]
[1641090887953,1.1745945,47308.0,47307.0,0.14033567]
[1641090888755,1.1745945,47308.0,47307.0,0.33133567]
[1641090890060,1.1745945,47308.0,47307.0,0.83112987]
[1641090890661,1.1745945,47308.0,47307.0,1.02212987]
[1641090892170,1.1745945,47308.0,47307.0,0.83112987]
[1641090892664,1.1745945,47308.0,47307.0,1.02212987]
[1641090892964,1.1745945,47308.0,47307.0,0.33133567]
[1641090894064,1.1745945,47308.0,47307.0,0.14033567]
[1641090894266,1.1745945,47308.0,47307.0,0.83113012]
[1641090894667,1.1745945,47308.0,47307.0,1.02213012]
[1641090894864,0.09010372,47311.0,47307.0,1.02213012]
[1641090894865,1.292357,47310.0,47307.0,1.26119393]
[1641090895667,1.292357,47310.0,47309.0,0.60068019]
[1641090896668,1.292357,47310.0,47309.0,0.78968019]
[1641090897669,1.292357,47310.0,47309.0,0.87978291]
[1641090898067,1.292357,47310.0,47309.0,0.69078291]
[1641090898668,1.292357,47310.0,47309.0,0.87978291]
[1641090898868,1.292357,47310.0,47309.0,0.78968019]
[1641090899069,1.292357,47310.0,47309.0,0.189]
[1641090899570,1.292357,47311.0,47309.0,0.87978229]
[1641090899969,1.292357,47311.0,47309.0,0.78968019]
[1641090900169,0.09010372,47310.0,47309.0,0.60068019]
[1641090900773,0.09010372,47310.0,47309.0,0.78868019]
[1641090901771,0.09010372,47310.0,47309.0,0.188]
[1641090902173,0.09010372,47310.0,47308.0,0.60068019]
[1641090902772,0.09010372,47310.0,47308.0,0.79068019]
[1641090903073,0.09010372,47310.0,47308.0,0.88078223]
[1641090903373,0.20114392,47309.0,47308.0,0.88078223]
[1641090903572,0.20114392,47309.0,47301.0,1.32148421]
[1641090903774,0.18,47302.0,47301.0,1.32148421]
[1641090903972,0.25566,47302.0,47301.0,1.32148421]
[1641090904773,0.43466,47302.0,47301.0,1.34848421]
[1641090905477,0.179,47302.0,47301.0,0.027]
[1641090905674,0.359,47302.0,47301.0,0.027]
[1641090905975,0.18,47302.0,47292.0,1.32148421]
[1641090906175,0.02114576,47304.0,47295.0,3.16034496]
[1641090906376,0.02114576,47304.0,47298.0,0.21242567]
[1641090906776,0.21814576,47304.0,47298.0,0.21242567]
[1641090907680,0.18,47303.0,47298.0,0.21242567]
[1641090908678,0.179,47303.0,47298.0,0.28942567]
[1641090909179,1.46579396,47303.0,47298.0,0.28942567]
[1641090909989,1.28679396,47303.0,47298.0,0.21242567]
[1641090910689,1.46779396,47303.0,47298.0,0.30242567]
[1641090912190,1.46779396,47303.0,47299.0,0.009794]
[1641090912389,1.46779396,47303.0,47299.0,1.066865]
[1641090912590,1.46779396,47303.0,47302.0,0.18]
[1641090912789,1.39679396,47303.0,47302.0,0.32033567]
[1641090912993,0.11,47303.0,47302.0,0.32033567]
[1641090913189,0.11,47303.0,47302.0,0.32133567]
[1641090914193,0.11,47303.0,47302.0,0.14133567]
[1641090914393,0.11,47303.0,47302.0,0.32133567]
[1641090914794,0.27,47303.0,47302.0,0.50633567]
[1641090915792,0.27,47303.0,47302.0,0.84523341]
[1641090916193,1.28679396,47310.0,47302.0,0.66023341]
[1641090916393,1.28679396,47310.0,47306.0,0.8]
[1641090916894,1.39379396,47310.0,47307.0,0.14033567]
[1641090917899,0.107,47310.0,47307.0,0.74095513]
[1641090918299,1.28679396,47311.0,47307.0,0.74095513]
[1641090918799,1.28679396,47311.0,47307.0,0.90095513]
[1641090918800,1.40179396,47311.0,47307.0,0.90095513]
[1641090919199,0.09786832,47309.0,47308.0,0.78061946]
[1641090919399,0.09786832,47309.0,47308.0,0.85870946]
[1641090919598,0.09786832,47309.0,47308.0,0.25809]
[1641090919801,0.09786832,47310.0,47308.0,0.25809]
[1641090919999,0.09786832,47310.0,47308.0,0.07809]
[1641090920200,0.09786832,47310.0,47308.0,0.25809]
[1641090920800,0.22586832,47310.0,47308.0,0.26209]
[1641090921000,0.09786832,47309.0,47308.0,0.26209]
[1641090921400,0.09786832,47309.0,47308.0,0.577918]
[1641090922200,0.09786832,47309.0,47308.0,0.393918]
[1641090922805,0.19786832,47309.0,47308.0,0.580918]
[1641090923706,0.19786832,47309.0,47308.0,1.78215692]
[1641090924508,0.19786832,47309.0,47308.0,1.46632892]
[1641090924908,0.28786832,47309.0,47308.0,1.65332892]
[1641090925107,0.28786832,47309.0,47308.0,0.45209]
[1641090926110,0.18786832,47309.0,47308.0,0.26509]
[1641090926412,0.09786832,47309.0,47308.0,0.07809]
[1641090926611,0.09786832,47309.0,47307.0,0.14033567]
[1641090926810,0.23786832,47309.0,47308.0,0.143]
[1641090927010,0.14,47309.0,47308.0,0.143]
[1641090928215,1.28679396,47310.0,47307.0,0.14033567]
[1641090928413,0.18,47308.0,47307.0,0.14033567]
[1641090928714,0.18,47308.0,47307.0,0.74096746]
[1641090928912,0.27786832,47308.0,47307.0,0.74096746]
[1641090929112,0.27786832,47308.0,47307.0,0.14033567]
[1641090930919,0.47186832,47308.0,47307.0,0.14033567]
[1641090932218,0.27786832,47308.0,47302.0,0.74096746]
[1641090932418,0.18,47303.0,47302.0,0.60063179]
[1641090932622,0.20114638,47303.0,47295.0,1.32148421]
[1641090932926,0.02114638,47303.0,47295.0,1.32148421]
[1641090933121,0.18,47297.0,47295.0,1.32148421]
[1641090933521,0.26122,47297.0,47295.0,1.32148421]
[1641090934722,0.26122,47297.0,47292.0,0.14033567]
[1641090934921,0.45522,47297.0,47292.0,0.14033567]
[1641090935620,0.27522,47297.0,47292.0,0.14033567]
[1641090935840,0.45522,47297.0,47292.0,0.14033567]
[1641090936225,0.09786832,47296.0,47292.0,0.14033567]
[1641090936924,0.29286832,47296.0,47292.0,0.14033567]
[1641090938123,0.09786832,47296.0,47292.0,0.14033567]
[1641090938326,0.09786832,47295.0,47292.0,0.14033567]
[1641090938927,0.29386832,47295.0,47292.0,0.14033567]
[1641090939330,0.196,47295.0,47292.0,0.14033567]
[1641090940331,0.09786832,47294.0,47292.0,0.14033567]
[1641090940938,0.29686832,47294.0,47292.0,0.14033567]
[1641090941129,0.199,47294.0,47292.0,0.14033567]
[1641090942132,0.34962125,47296.0,47292.0,0.14033567]
[1641090942432,0.34962125,47296.0,47292.0,0.20284567]
[1641090942832,0.54662125,47296.0,47292.0,0.20284567]
[1641090944246,0.34962125,47296.0,47292.0,0.20284567]
[1641090944850,0.54462125,47296.0,47292.0,0.20284567]
[1641090946156,0.34962125,47296.0,47292.0,0.20284567]
[1641090946951,0.195,47296.0,47292.0,0.20284567]
[1641090947951,0.195,47296.0,47292.0,0.14033567]
[1641090948152,0.52962125,47298.0,47292.0,0.14033567]
[1641090948354,0.34962125,47297.0,47292.0,0.14033567]
[1641090948953,0.54562125,47297.0,47292.0,0.14033567]
[1641090949553,0.196,47297.0,47292.0,0.14033567]
[1641090950154,0.52962125,47298.0,47292.0,0.14033567]
[1641090950953,0.54362125,47298.0,47292.0,0.14033567]
[1641090951656,0.72362125,47298.0,47292.0,0.14033567]
[1641090952055,0.54362125,47298.0,47292.0,0.14033567]
[1641090952454,0.72362125,47298.0,47292.0,0.14033567]
[1641090952855,0.72462125,47298.0,47292.0,0.14033567]
[1641090953256,0.54462125,47298.0,47292.0,0.14033567]
[1641090954058,0.54462125,47298.0,47293.0,0.18]
[1641090954257,0.34962125,47298.0,47292.0,0.32033567]
[1641090954959,0.193,47298.0,47292.0,0.14033567]
[1641090956360,0.34962125,47300.0,47292.0,0.14033567]
[1641090956858,0.54162125,47300.0,47292.0,0.14033567]
[1641090957266,0.54162125,47300.0,47292.0,0.32033567]
[1641090957862,0.54162125,47300.0,47292.0,0.14033567]
[1641090958263,0.34962125,47300.0,47292.0,0.14033567]
[1641090958965,0.54162125,47300.0,47292.0,0.32033567]
[1641090959363,0.192,47300.0,47292.0,0.32033567]
[1641090959864,0.192,47300.0,47292.0,0.14033567]
[1641090960164,0.54162125,47300.0,47292.0,0.32033567]
[1641090960364,0.34962125,47300.0,47292.0,0.32033567]
[1641090960562,0.34962125,47300.0,47292.0,0.14033567]
[1641090960964,0.54562125,47300.0,47292.0,0.14033567]
[1641090961367,0.54562125,47300.0,47288.0,0.60977852]
[1641090961765,0.18,47299.0,47288.0,0.60977852]
[1641090962067,1.28140257,47297.0,47294.0,0.83996442]
[1641090962267,1.28140257,47297.0,47295.0,0.59998452]
[1641090962867,1.47540257,47297.0,47294.0,0.83996442]
[1641090963067,0.194,47297.0,47296.0,0.83996442]
[1641090963768,0.28988186,47297.0,47295.0,0.83996442]
[1641090964369,0.09588186,47297.0,47295.0,0.83996442]
[1641090964969,0.09588186,47296.0,47295.0,0.83996442]
[1641090966072,0.09588186,47296.0,47293.0,2.03991359]
[1641090966272,0.09588186,47296.0,47293.0,0.83996442]
[1641090966975,0.29088186,47296.0,47293.0,0.83996442]
[1641090967171,0.195,47296.0,47293.0,0.83996442]
[1641090968171,0.09588186,47295.0,47293.0,0.83996442]
[1641090969073,0.195,47295.0,47293.0,0.83996442]
[1641090970074,0.09588186,47294.0,47292.0,1.19994917]
[1641090970875,1.28140257,47298.0,47291.0,1.19994917]
[1641090971074,0.197,47294.0,47291.0,1.19994917]
[1641090971778,0.197,47294.0,47292.0,1.19994917]
[1641090972276,1.28140257,47298.0,47291.0,1.19994917]
[1641090973077,0.197,47294.0,47291.0,1.19994917]
[1641090974277,1.28140257,47298.0,47291.0,1.19994917]
[1641090975078,1.47740257,47298.0,47291.0,1.19994917]
[1641090975779,0.09588186,47297.0,47291.0,1.19994917]
[1641090976983,0.196,47297.0,47291.0,1.19994917]
[1641090978089,0.09588186,47296.0,47291.0,1.19994917]
[1641090978286,0.58444961,47292.0,47288.0,1.33127821]
[1641090978888,0.58444961,47292.0,47289.0,1.057305]
[1641090979090,0.35070944,47291.0,47289.0,2.37878921]
[1641090980989,0.50170944,47291.0,47289.0,2.55978921]
[1641090982396,0.35070944,47291.0,47289.0,2.37878921]
[1641090982596,0.35070944,47291.0,47290.0,0.10916631]
[1641090982996,0.49170944,47291.0,47290.0,1.16646031]
[1641090983198,0.49170944,47291.0,47290.0,1.057294]
[1641090983697,0.49170944,47291.0,47290.0,1.16646387]
[1641090984298,0.35070944,47291.0,47290.0,1.16646387]
[1641090985106,0.42270944,47291.0,47290.0,1.34546387]
[1641090986112,0.072,47291.0,47290.0,1.34546387]
[1641090986312,0.58444961,47292.0,47290.0,2.48794808]
[1641090986909,0.58444961,47292.0,47291.0,0.10916987]
[1641090987110,0.72644961,47292.0,47291.0,0.10916987]
[1641090988312,0.58444961,47292.0,47291.0,0.10916987]
[1641090988813,0.58444961,47292.0,47291.0,0.28916987]
[1641090989009,0.72944961,47292.0,47291.0,0.46416987]
[1641090989210,0.72944961,47292.0,47291.0,0.28416987]
[1641090990311,0.58444961,47292.0,47291.0,0.10916987]
[1641090991114,0.73544961,47292.0,47291.0,0.28516987]
[1641090991318,0.73544961,47292.0,47291.0,0.176]
[1641090991717,0.73544961,47292.0,47291.0,0.28516987]
[1641090992215,0.58444961,47292.0,47291.0,0.10916987]
[1641090992815,0.58444961,47292.0,47290.0,0.10916987]
[1641090993017,0.71944961,47292.0,47291.0,0.167]
[1641090993619,0.71944961,47292.0,47291.0,0.27616987]
[1641090995020,0.73144961,47292.0,47291.0,0.28516987]
[1641090996525,0.10666023,47292.0,47291.0,0.10916987]
[1641090997123,0.24666023,47292.0,47291.0,0.28416987]
[1641090997524,0.72623914,47292.0,47291.0,0.28416987]
[1641090998323,0.58623914,47292.0,47291.0,0.10916987]
[1641090999028,0.71223914,47292.0,47291.0,0.28316987]
[1641090999227,0.126,47292.0,47291.0,0.28316987]
[1641091000628,0.23269274,47292.0,47291.0,0.28316987]
[1641091001031,0.15069274,47292.0,47291.0,0.28116987]
[1641091001229,0.15069274,47292.0,47291.0,0.172]
[1641091001430,0.15069274,47292.0,47291.0,1.37366311]
[1641091002029,0.15069274,47292.0,47291.0,2.17366311]
[1641091002429,0.10669274,47292.0,47291.0,2.10987139]
[1641091002630,0.10669274,47292.0,47291.0,3.16714339]
[1641091002833,0.10669274,47292.0,47291.0,1.96548028]
[1641091003031,0.22169274,47292.0,47291.0,2.13948028]
[1641091003430,0.93585537,47292.0,47291.0,2.13948028]
[1641091004430,0.92754811,47292.0,47291.0,1.96548028]
[1641091005030,0.075,47292.0,47291.0,2.13448028]
[1641091005632,0.18169274,47292.0,47291.0,2.13448028]
[1641091006435,0.92754811,47292.0,47291.0,1.96548028]
[1641091007033,0.92754811,47292.0,47291.0,2.13948028]
[1641091007234,1.04054811,47292.0,47291.0,2.13948028]
[1641091007436,0.93385537,47292.0,47291.0,2.13948028]
[1641091007934,1.04054811,47292.0,47291.0,2.13948028]
[1641091008335,1.04054811,47292.0,47291.0,1.96548028]
[1641091008538,0.92754811,47292.0,47291.0,1.96548028]
[1641091009137,1.09054811,47292.0,47291.0,2.14248028]
[1641091009838,0.26969274,47292.0,47291.0,2.14248028]
[1641091010948,0.26969274,47292.0,47291.0,1.96548028]
[1641091011148,0.165,47292.0,47291.0,2.14248028]
[1641091011349,0.75138358,47292.0,47291.0,2.14248028]
[1641091012552,0.58638358,47292.0,47291.0,1.96548028]
[1641091013151,0.64138358,47292.0,47291.0,2.13648028]
[1641091015152,0.74938358,47292.0,47291.0,2.14248028]
[1641091015949,0.74938358,47292.0,47291.0,2.45786328]
[1641091016550,0.58638358,47292.0,47291.0,2.28086328]
[1641091016950,0.58638358,47292.0,47291.0,2.70190541]
[1641091017154,1.40843756,47303.0,47291.0,3.73334156]
[1641091017350,1.40843756,47303.0,47302.0,0.8]
[1641091017550,1.40843756,47303.0,47302.0,0.86287]
[1641091017750,1.40843756,47306.0,47302.0,0.86287]
[1641091019155,0.168,47306.0,47302.0,1.02887]
[1641091019357,0.168,47306.0,47305.0,0.14033567]
[1641091020157,0.27343237,47306.0,47305.0,0.14033567]
[1641091020456,0.10543237,47306.0,47305.0,0.14033567]
[1641091021062,0.26243237,47306.0,47305.0,0.29433567]
[1641091021760,0.157,47306.0,47305.0,0.29433567]
[1641091021959,0.157,47306.0,47305.0,0.31547334]
[1641091022461,1.40843756,47311.0,47305.0,0.16147334]
[1641091022861,0.10543237,47306.0,47305.0,0.16147334]
[1641091023260,0.10543237,47306.0,47305.0,0.30747334]
[1641091023660,1.29294488,47309.0,47305.0,0.57758097]
[1641091024461,1.29294488,47309.0,47305.0,0.43158097]
[1641091024662,1.39837725,47310.0,47306.0,0.09010763]
[1641091025164,1.51537725,47310.0,47309.0,0.20113586]
[1641091025364,1.55942051,47320.0,47309.0,0.4916012]
[1641091025562,1.55942051,47320.0,47314.0,0.8]
[1641091025764,1.55942051,47320.0,47314.0,0.85684]
[1641091025962,1.28743804,47316.0,47315.0,0.009794]
[1641091026163,1.28743804,47316.0,47315.0,0.010794]
[1641091026363,0.86476153,47316.0,47315.0,0.03192637]
[1641091026563,1.04242984,47321.0,47315.0,0.03192637]
[1641091026763,1.55942051,47327.0,47320.0,0.181]
[1641091026965,1.55942051,47327.0,47323.0,0.8]
[1641091027165,0.02113237,47334.0,47323.0,0.8]
[1641091027366,0.93045052,47335.0,47324.0,1.11643667]
[1641091027568,0.18,47334.0,47324.0,1.20647667]
[1641091028765,0.18,47330.0,47324.0,1.20647667]
[1641091028965,0.79743411,47335.0,47324.0,1.20647667]
[1641091029168,0.18,47334.0,47324.0,1.38347667]
[1641091030568,0.18,47334.0,47324.0,1.20647667]
[1641091031271,0.18,47334.0,47324.0,1.38347667]
[1641091032576,0.18,47334.0,47324.0,1.20647667]
[1641091033274,0.35203839,47325.0,47324.0,1.38347667]
[1641091034476,0.35203839,47325.0,47324.0,1.20647667]
[1641091035077,0.58668094,47326.0,47324.0,1.20647667]
[1641091035276,0.58668094,47326.0,47324.0,1.39347667]
[1641091035479,0.58668094,47326.0,47325.0,0.317599]
[1641091035877,0.58668094,47327.0,47325.0,1.374111]
[1641091037278,0.58668094,47327.0,47325.0,1.559111]
[1641091038180,0.58668094,47326.0,47325.0,1.559111]
[1641091038580,0.58668094,47326.0,47325.0,1.374111]
[1641091039280,0.58668094,47326.0,47325.0,1.560111]
[1641091039681,0.76668094,47332.0,47325.0,1.560111]
[1641091040484,0.76668094,47332.0,47325.0,1.374111]
[1641091041084,0.58668094,47332.0,47325.0,1.374111]
[1641091041280,0.58668094,47332.0,47325.0,1.551111]
[1641091042484,0.58668094,47332.0,47325.0,1.374111]
[1641091043086,0.72701661,47333.0,47325.0,1.374111]
[1641091043282,0.72701661,47333.0,47325.0,1.552111]
[1641091043684,0.18,47327.0,47325.0,1.234512]
[1641091043881,0.25693,47327.0,47325.0,1.234512]
[1641091044481,0.25693,47327.0,47325.0,1.056512]
[1641091044682,0.07693,47327.0,47325.0,1.056512]
[1641091044884,0.07693,47327.0,47320.0,1.056501]
[1641091045081,0.07693,47327.0,47326.0,1.056501]
[1641091045282,0.07693,47327.0,47325.0,0.173]
[1641091045584,0.07693,47327.0,47326.0,1.05649]
[1641091045783,0.07693,47327.0,47325.0,0.173]
[1641091046083,0.07693,47327.0,47326.0,1.05649]
[1641091046883,0.07693,47327.0,47320.0,1.05649]
[1641091047085,0.07693,47327.0,47326.0,1.05649]
[1641091047286,0.25693,47327.0,47326.0,0.171]
[1641091047485,0.27806631,47327.0,47326.0,0.171]
[1641091048091,0.36815912,47327.0,47326.0,0.171]
[1641091048491,0.36815912,47327.0,47319.0,0.14033567]
[1641091048691,0.18,47324.0,47319.0,0.14033567]
[1641091049190,0.18,47324.0,47320.0,1.056602]
[1641091049790,0.58691108,47323.0,47320.0,1.056602]
[1641091051291,0.35217001,47322.0,47320.0,1.234602]
[1641091052506,0.35217001,47321.0,47320.0,1.234602]
[1641091052807,0.35217001,47321.0,47320.0,1.056602]
[1641091053209,0.58691108,47323.0,47320.0,1.237602]
[1641091053407,0.18,47321.0,47320.0,1.237602]
[1641091053606,0.26730855,47321.0,47320.0,0.808102]
[1641091053809,0.26730855,47321.0,47309.0,0.28067134]
[1641091054107,0.18,47313.0,47309.0,0.28067134]
[1641091055409,0.366,47313.0,47309.0,0.28067134]
[1641091056511,0.18,47313.0,47309.0,0.28067134]
[1641091057212,0.366,47313.0,47309.0,0.28067134]
[1641091057912,0.35178231,47312.0,47309.0,0.28067134]
[1641091058915,0.35178231,47311.0,47309.0,0.28067134]
[1641091060220,0.186,47312.0,47309.0,0.28067134]
[1641091060623,0.35178231,47314.0,47309.0,0.28067134]
[1641091061221,0.54278231,47314.0,47309.0,0.28067134]
[1641091061823,0.191,47314.0,47309.0,0.28067134]
[1641091062621,0.35178231,47315.0,47309.0,0.28067134]
[1641091062821,0.35178231,47314.0,47309.0,0.28067134]
[1641091063521,0.54378231,47315.0,47309.0,0.28067134]
[1641091064723,0.35178231,47315.0,47309.0,0.28067134]
[1641091065325,0.54278231,47315.0,47309.0,0.28067134]
[1641091066025,0.54278231,47315.0,47309.0,0.46067134]
[1641091066228,0.54278231,47315.0,47309.0,0.28067134]
[1641091066425,0.35178231,47315.0,47309.0,0.28067134]
[1641091066626,0.35178231,47316.0,47309.0,0.28067134]
[1641091067225,0.54478231,47316.0,47309.0,0.28067134]
[1641091067627,0.193,47316.0,47309.0,0.28067134]
[1641091068629,0.35178231,47318.0,47309.0,0.28067134]
[1641091069329,0.54378231,47318.0,47309.0,0.28067134]
[1641091070631,0.35178231,47318.0,47309.0,0.28067134]
[1641091071034,0.49211798,47319.0,47309.0,0.28067134]
[1641091071233,0.192,47318.0,47309.0,0.46067134]
[1641091071436,0.192,47318.0,47313.0,0.8]
[1641091071831,0.192,47318.0,47314.0,0.316207]
[1641091072034,0.192,47318.0,47317.0,0.14033567]
[1641091072234,0.192,47318.0,47317.0,0.21442567]
[1641091072832,0.35178231,47319.0,47317.0,0.21442567]
[1641091073232,0.169,47318.0,47317.0,0.38242567]
[1641091074435,0.169,47318.0,47317.0,0.69897367]
[1641091074635,0.35178231,47322.0,47317.0,0.53097367]
[1641091074835,0.35178231,47322.0,47317.0,0.52997367]
[1641091075036,0.35178231,47323.0,47317.0,0.52997367]
[1641091075235,0.179,47322.0,47317.0,0.60297367]
[1641091075636,0.179,47322.0,47317.0,0.28742567]
[1641091076036,0.179,47322.0,47321.0,0.8]
[1641091076638,0.35178231,47323.0,47321.0,0.8]
[1641091076639,0.58630385,47325.0,47321.0,0.8]
[1641091076839,0.58630385,47323.0,47321.0,0.8]
[1641091079241,0.78130385,47323.0,47321.0,0.8]
[1641091080140,0.58630385,47322.0,47321.0,0.8]
[1641091080340,0.58630385,47322.0,47321.0,0.82113032]
[1641091081040,0.35201938,47322.0,47321.0,0.82113032]
[1641091081242,0.54201938,47322.0,47321.0,0.89513032]
[1641091082541,0.35201938,47322.0,47321.0,0.82113032]
[1641091083343,0.51801938,47322.0,47321.0,0.97513032]
[1641091083643,0.51801938,47322.0,47321.0,0.954]
[1641091084843,0.35201938,47322.0,47321.0,0.8]
[1641091085245,0.51701938,47322.0,47321.0,0.953]
[1641091085945,0.165,47322.0,47321.0,1.03183]
[1641091086344,0.165,47322.0,47321.0,1.347435]
[1641091086544,0.35201938,47323.0,47321.0,1.194435]
[1641091087249,0.54101938,47323.0,47321.0,1.54045337]
[1641091087950,0.189,47323.0,47321.0,1.54045337]
[1641091088147,0.189,47323.0,47322.0,0.14033567]
[1641091088447,0.189,47323.0,47322.0,0.45638467]
[1641091088648,0.35201938,47324.0,47322.0,0.45638467]
[1641091088848,0.35201938,47325.0,47322.0,0.45638467]
[1641091089247,0.188,47324.0,47322.0,0.59038467]
[1641091090649,0.35201938,47325.0,47322.0,0.45638467]
[1641091091356,0.54001938,47325.0,47322.0,0.59438467]
[1641091092659,0.35201938,47325.0,47322.0,0.45638467]
[1641091093363,0.53901938,47325.0,47322.0,0.60838467]
[1641091094464,0.35201938,47325.0,47322.0,0.45638467]
[1641091095267,0.54701938,47325.0,47322.0,0.45638467]
[1641091096165,0.195,47325.0,47322.0,0.45638467]
[1641091096865,0.35201938,47326.0,47322.0,0.45638467]
[1641091097264,0.19,47325.0,47322.0,0.53038467]
[1641091098565,0.35201938,47326.0,47322.0,0.45638467]
[1641091098765,0.35201938,47326.0,47322.0,0.87901349]
[1641091099364,0.54101938,47326.0,47322.0,0.99301349]
[1641091099566,0.35201938,47325.0,47322.0,0.99301349]
[1641091100165,0.54101938,47326.0,47323.0,0.02112939]
[1641091100467,0.54101938,47326.0,47324.0,0.315372]
[1641091101065,0.35201938,47326.0,47324.0,0.315372]
[1641091101267,0.187,47326.0,47324.0,0.460372]
[1641091102570,0.187,47326.0,47324.0,0.315372]
[1641091102770,0.35201938,47327.0,47324.0,0.315372]
[1641091103372,0.35201938,47325.0,47324.0,0.463372]
[1641091104675,0.35201938,47325.0,47324.0,0.315372]
[1641091105377,0.52601938,47325.0,47324.0,0.480372]
[1641091106677,0.35201938,47325.0,47324.0,0.315372]
[1641091107278,0.53201938,47325.0,47324.0,0.489372]
[1641091108681,0.35201938,47325.0,47324.0,0.315372]
[1641091109182,0.35201938,47325.0,47324.0,0.488372]
[1641091109486,0.53101938,47325.0,47324.0,0.488372]
[1641091110081,0.179,47325.0,47324.0,0.488372]
[1641091110684,0.35201938,47326.0,47324.0,0.315372]
[1641091111284,0.52701938,47326.0,47324.0,0.483372]
[1641091112585,0.35201938,47326.0,47324.0,0.315372]
[1641091113284,0.52701938,47326.0,47324.0,0.482372]
[1641091114587,0.35201938,47326.0,47324.0,0.315372]
[1641091115190,0.52101938,47326.0,47325.0,0.14033567]
[1641091115487,0.52101938,47326.0,47325.0,0.45446667]
[1641091116588,0.35201938,47326.0,47325.0,0.45446667]
[1641091117389,0.52101938,47326.0,47325.0,0.61346667]
[1641091118090,0.52101938,47326.0,47325.0,0.159]
[1641091118491,0.52101938,47326.0,47323.0,0.59933216]
[1641091118691,0.18,47325.0,47323.0,0.59933216]
[1641091119292,0.368,47325.0,47320.0,0.59933216]
[1641091120092,0.09007534,47324.0,47320.0,0.59933216]
[1641091120293,0.82082539,47321.0,47315.0,0.14033567]
[1641091121094,0.35109584,47317.0,47315.0,0.14033567]
[1641091122397,1.17260769,47317.0,47316.0,0.19526992]
[1641091122797,1.17260769,47317.0,47315.0,1.33899999]
[1641091123298,0.191,47317.0,47315.0,0.14033567]
[1641091125204,0.382,47317.0,47315.0,0.14033567]
[1641091127315,0.19,47317.0,47315.0,0.14033567]
[1641091128622,0.35097254,47319.0,47315.0,0.14033567]
[1641091129219,0.53997254,47319.0,47315.0,0.14033567]
[1641091129820,0.35097254,47318.0,47315.0,0.14033567]
[1641091130524,0.35097254,47319.0,47315.0,0.14033567]
[1641091131324,0.35097254,47318.0,47315.0,0.14033567]
[1641091133228,0.54197254,47318.0,47315.0,0.14033567]
[1641091133832,0.191,47318.0,47315.0,0.14033567]
[1641091134729,0.35097254,47318.0,47315.0,0.14033567]
[1641091135329,0.188,47318.0,47315.0,0.14033567]